bitfinex-derivatives/quotes_SOLF0:USTF0_20260302
["timestamp","ask_amount","ask_price","bid_price","bid_amount"]
[1772417627200,17.67259311,83.795,83.75,3.12686972]
[1772417627802,17.67259311,83.795,83.75,13.87276972]
[1772417628002,17.62989028,83.805,83.76,3.12686972]
[1772417628198,20.75676,83.8,83.76,3.12686972]
[1772417628401,20.75676,83.8,83.75,10.7459]
[1772417628402,20.75676,83.8,83.75,13.87276972]
[1772417628603,20.75676,83.8,83.76,3.12686972]
[1772417629400,17.62989028,83.77,83.716,22.30550288]
[1772417629603,10.19860513,83.729,83.658,18.40499325]
[1772417629803,13.32547485,83.7,83.65,3.12686972]
[1772417629995,3.12686972,83.71,83.67,3.12686972]
[1772417630200,3.12686972,83.72,83.67,3.12686972]
[1772417630600,10.22877021,83.719,83.67,3.12686972]
[1772417631494,3.12686972,83.7,83.651,18.40499325]
[1772417631799,3.12686972,83.7,83.66,3.12686972]
[1772417632195,10.30135408,83.709,83.66,3.12686972]
[1772417632602,10.30135408,83.709,83.621,18.40499325]
[1772417632797,17.78998427,83.69,83.621,18.40499325]
[1772417633001,10.33068969,83.69,83.621,18.40499325]
[1772417633195,10.33068969,83.69,83.63,7.45929458]
[1772417633396,10.3434928,83.709,83.644,18.40499325]
[1772417633595,10.3434928,83.709,83.651,18.40499325]
[1772417634405,10.3434928,83.709,83.652,29.16339325]
[1772417634604,10.3434928,83.709,83.652,18.40499325]
[1772417634996,10.3434928,83.709,83.653,18.40499325]
[1772417636202,10.3434928,83.709,83.654,10.7581]
[1772417636396,10.3434928,83.709,83.653,18.40499325]
[1772417636806,21.0946928,83.709,83.653,18.40499325]
[1772417637303,10.3434928,83.709,83.655,10.7581]
[1772417639204,10.3434928,83.709,83.655,29.16309325]
[1772417641406,10.3434928,83.709,83.661,10.7573]
[1772417641607,10.3434928,83.709,83.656,18.40499325]
[1772417642806,10.7514,83.708,83.656,18.40499325]
[1772417643102,10.3434928,83.709,83.656,18.40499325]
[1772417643508,10.3434928,83.709,83.658,10.7577]
[1772417643899,10.3434928,83.709,83.658,29.16269325]
[1772417644604,10.3434928,83.709,83.661,10.7572]
[1772417644804,10.2756098,83.724,83.671,18.40499325]
[1772417645106,10.2756098,83.724,83.679,10.7549]
[1772417645512,10.25915567,83.74,83.681,18.40499325]
[1772417645808,10.25915567,83.756,83.691,18.40499325]
[1772417646912,10.28376443,83.752,83.694,10.7531]
[1772417647408,12.73599817,83.749,83.691,18.40499325]
[1772417647613,12.73599817,83.739,83.67,18.40499325]
[1772417647910,12.73599817,83.739,83.67,25.86428783]
[1772417648111,12.73599817,83.732,83.675,10.7554]
[1772417648804,7.45929458,83.74,83.675,10.7554]
[1772417648805,12.76167015,83.727,83.675,10.7554]
[1772417650911,13.10888017,83.742,83.68,7.45929458]
[1772417651108,13.10888017,83.742,83.681,18.40499325]
[1772417651713,13.10888017,83.742,83.689,10.7536]
[1772417652819,10.7471,83.741,83.689,10.7536]
[1772417653010,13.22082766,83.74,83.689,10.7536]
[1772417654018,13.22082766,83.74,83.697,10.7526]
[1772417654419,13.22082766,83.74,83.69,18.6026141]
[1772417655213,13.22082766,83.74,83.693,10.7532]
[1772417655915,13.22082766,83.74,83.699,10.7524]
[1772417658116,13.21203832,83.754,83.7,18.20644114]
[1772417658718,13.21203832,83.754,83.711,18.20644114]
[1772417659019,10.7444,83.762,83.711,18.20644114]
[1772417659417,13.19796714,83.761,83.711,18.20644114]
[1772417660520,13.19796714,83.761,83.68,7.4541927]
[1772417660521,13.21929848,83.779,83.721,18.20644114]
[1772417660914,13.21929848,83.776,83.721,18.20644114]
[1772417662223,13.20797045,83.769,83.711,10.7509]
[1772417663923,13.20797045,83.769,83.718,28.95634114]
[1772417664321,44.54941594,83.785,83.722,18.20644114]
[1772417664516,12.59473791,83.785,83.731,18.20644114]
[1772417665027,12.59473791,83.785,83.74,7.4541927]
[1772417665714,12.59473791,83.785,83.731,18.20644114]
[1772417665921,12.59473791,83.785,83.738,18.20644114]
[1772417666121,12.59473791,83.785,83.741,18.20644114]
[1772417666420,10.7406,83.792,83.741,18.20644114]
[1772417666817,10.7406,83.792,83.745,10.7465]
[1772417667022,23.37283499,83.792,83.745,10.7465]
[1772417667325,12.64997577,83.791,83.741,18.20644114]
[1772417667931,12.17103643,83.79,83.741,18.20644114]
[1772417668818,12.17103643,83.79,83.741,28.95344114]
[1772417670726,12.28011954,83.808,83.75,7.4541927]
[1772417670931,12.28011954,83.808,83.751,18.20644114]
[1772417672436,12.28011954,83.808,83.762,10.7442]
[1772417672629,12.28011954,83.808,83.751,18.20644114]
[1772417673833,10.7399,83.797,83.751,18.20644114]
[1772417674036,12.28011954,83.808,83.751,18.20644114]
[1772417674829,10.7399,83.797,83.751,18.20644114]
[1772417675431,12.42799015,83.794,83.742,10.7468]
[1772417676045,12.42799015,83.794,83.745,18.20644114]
[1772417676947,12.42799015,83.794,83.748,18.20644114]
[1772417677241,12.50783155,83.789,83.731,18.20644114]
[1772417677741,23.24983155,83.781,83.731,18.20644114]
[1772417678144,21.4734,83.823,83.731,18.20644114]
[1772417678145,12.50783155,83.795,83.731,18.20644114]
[1772417679548,12.50783155,83.795,83.73,7.4541927]
[1772417679549,10.7418,83.783,83.735,18.20644114]
[1772417681845,12.50783155,83.795,83.738,18.20644114]
[1772417681846,10.7405,83.792,83.738,18.20644114]
[1772417682651,23.4069122,83.792,83.738,18.20644114]
[1772417682952,23.4069122,83.792,83.741,18.20644114]
[1772417683547,23.4069122,83.792,83.743,18.20644114]
[1772417684448,12.6664122,83.792,83.745,18.20644114]
[1772417685246,10.7406,83.791,83.745,18.20644114]
[1772417685548,12.21495156,83.79,83.745,18.20644114]
[1772417686048,12.21495156,83.818,83.761,18.20644114]
[1772417686253,12.22926261,83.799,83.729,18.20644114]
[1772417686453,12.2302624,83.79,83.735,18.20644114]
[1772417687252,10.7409,83.789,83.737,18.34838429]
[1772417687652,12.2302624,83.79,83.737,18.34838429]
[1772417688050,12.09575859,83.789,83.737,18.34838429]
[1772417688950,13.99190562,83.836,83.737,18.34838429]
[1772417688951,12.11091143,83.783,83.737,18.34838429]
[1772417689751,12.15783738,83.775,83.723,18.34838429]
[1772417690055,12.15783738,83.775,83.725,18.34838429]
[1772417690645,12.15783738,83.775,83.729,10.7486]
[1772417690844,10.7419,83.782,83.73,18.34838429]
[1772417691952,10.7419,83.782,83.72,7.4541927]
[1772417691953,10.7419,83.782,83.733,18.34838429]
[1772417693953,12.17603029,83.779,83.72,18.34838429]
[1772417694553,10.7433,83.771,83.72,18.34838429]
[1772417695852,10.7433,83.771,83.721,18.34838429]
[1772417696156,12.17603029,83.779,83.723,18.34838429]
[1772417696552,12.17603029,83.779,83.74,3.12731142]
[1772417696753,10.7423,83.778,83.736,18.34838429]
[1772417697256,22.9239716,83.778,83.736,18.34838429]
[1772417697853,22.9239716,83.778,83.74,3.12731142]
[1772417699346,22.9239716,83.778,83.736,18.34838429]
[1772417699749,22.9239716,83.778,83.74,3.12731142]
[1772417699954,12.1816716,83.778,83.74,21.47569571]
[1772417700155,10.7412,83.787,83.75,3.12731142]
[1772417700449,12.05668264,83.791,83.75,3.12731142]
[1772417700756,12.05668264,83.791,83.76,3.12731142]
[1772417700951,12.06951788,83.805,83.77,3.12731142]
[1772417701152,12.06951788,83.821,83.78,3.12731142]
[1772417701351,3.12731142,83.82,83.78,3.12731142]
[1772417701758,11.96500198,83.835,83.79,3.12731142]
[1772417701953,11.96500198,83.835,83.8,3.12731142]
[1772417703162,11.97732483,83.849,83.8,21.47569571]
[1772417703457,11.97732483,83.849,83.81,3.12731142]
[1772417703860,11.97732483,83.849,83.82,3.12731142]
[1772417704160,13.85781142,83.87,83.813,18.34838429]
[1772417704360,11.87494044,83.869,83.82,3.12731142]
[1772417704662,10.7309,83.867,83.82,3.12731142]
[1772417704857,10.7309,83.867,83.83,3.12731142]
[1772417705362,22.6349642,83.867,83.83,3.12731142]
[1772417706859,10.7296,83.878,83.84,3.12731142]
[1772417707057,11.91609535,83.869,83.83,3.12731142]
[1772417707358,11.92707242,83.883,83.825,18.34838429]
[1772417707558,11.92707242,83.883,83.84,3.12731142]
[1772417707760,11.92707242,83.883,83.825,18.34838429]
[1772417707761,11.92707242,83.883,83.85,3.12731142]
[1772417707960,12.03713103,83.899,83.85,3.12731142]
[1772417708356,12.03713103,83.899,83.86,3.12731142]
[1772417708562,22.76393103,83.899,83.86,3.12731142]
[1772417708757,3.12731142,83.91,83.87,3.12731142]
[1772417708963,15.17592122,83.91,83.87,3.12731142]
[1772417709160,12.0486098,83.909,83.87,3.12731142]
[1772417710265,12.0232911,83.919,83.88,3.12731142]
[1772417710462,3.12731142,83.91,83.87,3.12731142]
[1772417710862,12.0232911,83.909,83.87,3.12731142]
[1772417711163,3.12731142,83.92,83.88,3.12731142]
[1772417711363,3.12731142,83.91,83.87,3.12731142]
[1772417711562,12.03898605,83.918,83.87,3.12731142]
[1772417711759,12.03898605,83.933,83.9,3.12731142]
[1772417712155,12.03898605,83.933,83.777,29.45219352]
[1772417712156,12.03898605,83.948,83.91,3.12731142]
[1772417712363,3.12731142,83.96,83.91,3.12731142]
[1772417712560,12.04913757,83.964,83.901,18.34838429]
[1772417713167,10.7193,83.958,83.901,18.34838429]
[1772417713363,12.00989086,83.957,83.901,18.34838429]
[1772417713569,12.00989086,83.957,83.886,17.6745612]
[1772417713962,12.00989086,83.957,83.9,7.41563236]
[1772417714267,12.00989086,83.979,83.911,17.6745612]
[1772417714566,12.00989086,83.979,83.92,7.41278883]
[1772417714765,294.0,84.035,83.941,17.6745612]
[1772417714964,12.02057866,84.01,83.951,17.6745612]
[1772417715567,12.31086633,84.009,83.951,17.6745612]
[1772417715961,12.31086633,84.006,83.951,17.6745612]
[1772417716367,10.717,83.976,83.92,7.41278883]
[1772417716669,12.32152197,83.975,83.917,17.6745612]
[1772417717574,12.46140268,83.968,83.898,19.29376694]
[1772417717766,12.46140268,83.959,83.898,19.29376694]
[1772417718069,12.46140268,83.975,83.93,7.41278883]
[1772417718258,12.46140268,83.991,83.931,19.29376694]
[1772417718460,12.47163723,83.989,83.931,19.29376694]
[1772417718860,12.47163723,83.969,83.912,19.29376694]
[1772417719768,166.5986,84.032,83.88,7.41278883]
[1772417719769,12.03916614,83.986,83.921,19.29376694]
[1772417720875,19.46187156,83.98,83.921,19.29376694]
[1772417721071,7.41278883,83.97,83.921,19.29376694]
[1772417721272,7.41278883,83.97,83.855,202.7468452]
[1772417721273,11.4058123,83.959,83.901,19.29376694]
[1772417721470,7.41278883,83.95,83.901,19.29376694]
[1772417721674,11.4058123,83.959,83.901,19.29376694]
[1772417722972,22.1249123,83.959,83.901,19.29376694]
[1772417723168,11.4058123,83.959,83.901,19.29376694]
[1772417723771,11.46691589,83.958,83.901,19.29376694]
[1772417724772,11.47601065,83.949,83.901,19.29376694]
[1772417724974,7.41278883,84.0,83.855,202.7468452]
[1772417724975,11.47601065,83.929,83.866,19.29376694]
[1772417726279,7.41278883,83.93,83.869,19.29376694]
[1772417726576,11.56271498,83.929,83.869,19.29376694]
[1772417726779,10.7258,83.908,83.855,202.7468452]
[1772417727079,11.56271498,83.919,83.861,19.29376694]
[1772417728172,11.56271498,83.919,83.855,202.7468452]
[1772417728173,7.41278883,83.95,83.87,7.41278883]
[1772417728372,11.52050959,83.969,83.9,7.41278883]
[1772417728578,11.52050959,83.969,83.911,30.01896694]
[1772417728778,11.52050959,83.969,83.912,19.29376694]
[1772417729380,10.7181,83.968,83.912,19.29376694]
[1772417729881,10.7193,83.958,83.912,19.29376694]
[1772417730379,11.39515111,83.959,83.891,19.29376694]
[1772417731376,11.39515111,83.959,83.893,19.29376694]
[1772417731976,10.69955156,83.977,83.91,7.41278883]
[1772417732175,10.69955156,83.977,83.911,19.29376694]
[1772417733783,10.54340144,83.974,83.88,7.41278883]
[1772417734086,10.54340144,83.949,83.893,19.29376694]
[1772417734483,10.7224,83.934,83.893,19.29376694]
[1772417735378,10.7224,83.934,83.871,19.29376694]
[1772417735582,10.7232,83.928,83.871,19.29376694]
[1772417735787,7.41278883,83.96,83.871,19.29376694]
[1772417735788,7.41278883,83.92,83.871,19.29376694]
[1772417736382,10.54191843,83.879,83.806,19.29376694]
[1772417736587,7.41278883,83.87,83.806,19.29376694]
[1772417736781,10.54191843,83.879,83.811,19.29376694]
[1772417737087,7.41278883,83.87,83.818,19.29376694]
[1772417738789,10.7307,83.869,83.818,19.29376694]
[1772417739083,10.7307,83.869,83.797,19.29376694]
[1772417739084,7.41278883,83.86,83.797,19.29376694]
[1772417739289,10.732,83.859,83.797,19.29376694]
[1772417740780,7.41278883,83.88,83.811,19.29376694]
[1772417741783,10.7297,83.877,83.811,19.29376694]
[1772417742186,11.65011427,83.879,83.811,19.29376694]
[1772417743481,11.96030919,83.888,83.823,19.29376694]
[1772417743882,11.96030919,83.879,83.823,19.29376694]
[1772417744987,10.7296,83.878,83.823,19.29376694]
[1772417745183,11.96030919,83.879,83.823,19.29376694]
[1772417745789,10.7295,83.878,83.823,19.29376694]
[1772417745995,7.41278883,83.89,83.823,19.29376694]
[1772417746893,18.14088883,83.89,83.823,19.29376694]
[1772417748395,18.14088883,83.89,83.827,18.15439086]
[1772417748590,11.93989037,83.896,83.831,18.15439086]
[1772417750595,7.41278883,83.91,83.84,7.41278883]
[1772417750788,12.03849273,83.909,83.841,18.15439086]
[1772417751792,10.7263,83.904,83.841,18.15439086]
[1772417752296,12.03849273,83.909,83.851,18.15439086]
[1772417752988,7.41278883,83.96,83.861,18.15439086]
[1772417752989,12.05070902,83.927,83.861,18.15439086]
[1772417753592,12.24084938,83.918,83.861,18.15439086]
[1772417754592,10.7247,83.916,83.861,18.15439086]
[1772417755197,12.24084938,83.918,83.865,18.15439086]
[1772417756888,10.7245,83.917,83.865,18.15439086]
[1772417757592,12.24084938,83.918,83.865,18.15439086]
[1772417758190,10.7246,83.916,83.865,18.15439086]
[1772417758991,10.7235,83.926,83.868,18.15439086]
[1772417759900,10.7235,83.926,83.87,18.15439086]
[1772417760798,10.7235,83.926,83.872,18.15439086]
[1772417761100,10.7223,83.935,83.881,18.15439086]
[1772417761696,10.7233,83.927,83.881,18.15439086]
[1772417761896,12.06216231,83.919,83.861,18.15439086]
[1772417762496,12.06786683,83.909,83.861,18.15439086]
[1772417762798,166.7634,83.949,83.841,18.15439086]
[1772417762799,19.48065566,83.9,83.841,18.15439086]
[1772417763102,12.06786683,83.899,83.841,18.15439086]
[1772417763801,10.7285,83.886,83.841,18.15439086]
[1772417764504,10.7273,83.895,83.841,18.15439086]
[1772417765003,10.7286,83.886,83.841,18.15439086]
[1772417765199,12.06786683,83.899,83.841,18.15439086]
[1772417766898,12.06786683,83.899,83.844,18.15439086]
[1772417767305,12.3163601,83.914,83.851,18.15439086]
[1772417768807,10.7251,83.913,83.861,18.15439086]
[1772417769208,12.3163601,83.914,83.861,18.15439086]
[1772417769512,10.7261,83.905,83.861,18.15439086]
[1772417770703,23.0413601,83.914,83.861,18.15439086]
[1772417771011,12.23682726,83.929,83.861,18.15439086]
[1772417771506,12.14915527,83.909,83.831,18.15439086]
[1772417771708,7.41278883,83.9,83.831,18.15439086]
[1772417771908,7.41278883,83.92,83.851,18.15439086]
[1772417772109,12.14915527,83.953,83.89,7.41278883]
[1772417772299,12.14915527,83.953,83.901,18.15439086]
[1772417772503,12.15420945,83.968,83.911,18.15439086]
[1772417773011,12.15420945,83.968,83.895,18.56686665]
[1772417773210,12.15452494,83.959,83.895,18.56686665]
[1772417773711,11.84557974,83.957,83.901,18.56686665]
[1772417774310,11.84557974,83.957,83.91,7.41278883]
[1772417774506,7.41278883,83.98,83.911,18.56686665]
[1772417774507,10.7181,83.968,83.911,18.56686665]
[1772417775314,11.85552782,83.959,83.895,18.56686665]
[1772417776308,11.94316641,83.953,83.896,10.7271]
[1772417776613,11.94316641,83.953,83.896,29.29396665]
[1772417776812,11.94316641,83.953,83.897,18.56686665]
[1772417777611,11.94316641,83.953,83.899,18.96222606]
[1772417778207,10.7193,83.958,83.901,18.96222606]
[1772417778412,10.7181,83.968,83.901,18.96222606]
[1772417778811,10.7181,83.968,83.88,7.41337675]
[1772417778812,22.71249634,83.968,83.91,26.37560281]
[1772417779011,10.7189,83.961,83.91,26.37560281]
[1772417779310,11.96694362,83.989,83.92,7.41337675]
[1772417779510,11.96694362,83.981,83.92,10.7241]
[1772417779706,11.96694362,83.979,83.92,10.7241]
[1772417779912,11.96694362,83.979,83.921,18.96222606]
[1772417781218,11.97643055,83.973,83.921,18.96222606]
[1772417782015,11.83392615,83.973,83.921,18.96222606]
[1772417782616,249.00696366,84.042,83.931,18.96222606]
[1772417782617,7.41337675,84.0,83.931,18.96222606]
[1772417782817,7.41337675,83.99,83.911,18.96222606]
[1772417783023,10.7171,83.976,83.913,18.96222606]
[1772417783421,10.7171,83.976,83.916,18.96222606]
[1772417784020,22.40889175,83.976,83.916,18.96222606]
[1772417784218,11.69179175,83.976,83.918,18.96222606]
[1772417784624,11.69179175,83.976,83.921,18.96222606]
[1772417785228,11.69179175,83.976,83.924,18.96222606]
[1772417786327,250.33,84.042,83.931,18.96222606]
[1772417786328,10.7144,83.997,83.931,18.96222606]
[1772417786528,10.7144,83.997,83.941,18.96222606]
[1772417786729,11.71992839,84.002,83.941,18.96222606]
[1772417787032,7.41337675,84.0,83.941,18.96222606]
[1772417787232,10.7155,83.988,83.941,18.96222606]
[1772417789829,10.7165,83.98,83.941,18.96222606]
[1772417790135,11.50643597,83.985,83.925,18.96222606]
[1772417790337,7.41337675,83.98,83.925,18.96222606]
[1772417790634,11.51054508,83.979,83.925,18.96222606]
[1772417791631,11.41929788,83.996,83.931,18.96222606]
[1772417792929,10.7152,83.99,83.933,18.96222606]
[1772417793833,10.7152,83.99,83.93,7.41337675]
[1772417793834,10.7152,83.99,83.936,18.96222606]
[1772417794240,10.7152,83.99,83.939,18.96222606]
[1772417794426,10.7152,83.99,83.941,18.96222606]
[1772417794633,10.7164,83.981,83.941,18.96222606]
[1772417794836,11.4234552,83.979,83.911,18.96222606]
[1772417796039,10.7196,83.956,83.911,18.96222606]
[1772417797436,10.7205,83.949,83.911,18.96222606]
[1772417798042,11.40256857,83.955,83.911,18.96222606]
[1772417799842,10.7198,83.954,83.911,18.96222606]
[1772417801042,11.40256857,83.955,83.911,18.96222606]
[1772417801239,10.7187,83.963,83.911,18.96222606]
[1772417803333,11.39452641,83.97,83.914,18.96222606]
[1772417803938,11.32363453,83.989,83.92,18.96222606]
[1772417804940,10.7169,83.977,83.922,18.96222606]
[1772417806141,10.7169,83.977,83.924,18.96222606]
[1772417807943,10.7158,83.985,83.931,18.29677394]
[1772417808647,10.7158,83.985,83.933,18.29677394]
[1772417808839,11.33843975,83.981,83.933,18.29677394]
[1772417809647,10.7176,83.971,83.933,18.29677394]
[1772417809844,11.33843975,83.981,83.933,18.29677394]
[1772417810247,10.7165,83.98,83.933,18.29677394]
[1772417811046,11.43071621,83.968,83.915,17.10677394]
[1772417812050,10.7181,83.967,83.915,17.10677394]
[1772417812251,11.43071621,83.968,83.915,17.10677394]
[1772417812951,2.07332295,83.994,83.891,18.29677394]
[1772417812952,12.52431042,83.956,83.891,18.29677394]
[1772417813349,10.718,83.969,83.909,18.29677394]
[1772417813547,10.718,83.969,83.911,18.29677394]
[1772417814057,22.80148569,83.964,83.913,18.29677394]
[1772417814350,12.0869586,83.963,83.913,18.29677394]
[1772417815453,7.41337675,83.96,83.891,18.29677394]
[1772417815657,11.79740685,83.959,83.891,18.29677394]
[1772417815861,10.7207,83.947,83.894,18.29677394]
[1772417816159,10.7207,83.947,83.851,186.41106782]
[1772417816160,7.41337675,83.91,83.864,0.35697394]
[1772417816452,17.98821063,83.898,83.82,7.41337675]
[1772417816857,7.41337675,83.89,83.82,7.41337675]
[1772417817050,17.98821063,83.889,83.82,7.41337675]
[1772417818256,17.98821063,83.889,83.83,7.41337675]
[1772417818460,17.98821063,83.889,83.831,18.29677394]
[1772417818858,17.98821063,83.889,83.832,18.29677394]
[1772417819360,28.71641063,83.889,83.832,18.29677394]
[1772417819765,28.71641063,83.889,83.834,18.29677394]
[1772417820564,17.98821063,83.889,83.834,18.29677394]
[1772417821163,17.98821063,83.889,83.837,10.7347]
[1772417821365,17.98821063,83.889,83.838,18.29677394]
[1772417821564,10.7268,83.899,83.838,18.29677394]
[1772417821765,28.71501063,83.899,83.838,18.29677394]
[1772417822067,10.7256,83.909,83.841,18.29677394]
[1772417822268,17.98821063,83.908,83.841,18.29677394]
[1772417822467,10.7263,83.904,83.846,10.7336]
[1772417822667,10.7263,83.904,83.847,18.29677394]
[1772417823860,10.7263,83.904,83.849,18.29677394]
[1772417824667,17.98821063,83.908,83.852,18.29677394]
[1772417825769,17.98821063,83.908,83.853,10.7327]
[1772417825971,17.98821063,83.908,83.854,18.29677394]
[1772417827371,17.98821063,83.908,83.856,18.29677394]
[1772417828375,28.71651063,83.888,83.842,18.29677394]
[1772417828573,17.98821063,83.887,83.842,18.29677394]
[1772417828975,7.41337675,83.88,83.826,29.03287394]
[1772417829178,17.98821063,83.879,83.826,29.03287394]
[1772417829868,17.98821063,83.879,83.826,18.29677394]
[1772417830074,17.98821063,83.894,83.837,18.29677394]
[1772417830671,17.98821063,83.894,83.839,18.29677394]
[1772417831867,17.98821063,83.894,83.841,18.29677394]
[1772417832273,17.98821063,83.889,83.841,18.29677394]
[1772417833776,29.94625482,83.884,83.841,18.29677394]
[1772417833976,7.41337675,83.89,83.825,19.65737425]
[1772417833977,19.21735482,83.883,83.825,19.65737425]
[1772417834375,19.21735482,83.879,83.825,19.65737425]
[1772417834778,19.21735482,83.879,83.811,19.65737425]
[1772417835075,19.21735482,83.869,83.811,19.65737425]
[1772417835281,19.21735482,83.866,83.811,19.65737425]
[1772417836180,19.21735482,83.866,83.822,10.7366]
[1772417836483,7.41337675,83.92,83.823,19.65737425]
[1772417836484,19.21735482,83.881,83.823,19.65737425]
[1772417837073,19.35846818,83.879,83.811,18.25531149]
[1772417837880,19.35846818,83.871,83.815,18.25531149]
[1772417838078,19.35846818,83.869,83.815,18.25531149]
[1772417838580,19.35846818,83.884,83.825,18.25531149]
[1772417838982,19.35846818,83.884,83.837,10.7347]
[1772417840079,19.35846818,83.899,83.842,18.25531149]
[1772417840581,3.11911467,83.89,83.85,3.11911467]
[1772417841476,19.35846818,83.889,83.84,3.11911467]
[1772417841788,3.11911467,83.88,83.84,3.11911467]
[1772417842180,19.35846818,83.889,83.843,28.98931149]
[1772417842376,19.35846818,83.889,83.812,18.25531149]
[1772417842581,3.11911467,83.85,83.8,3.11911467]
[1772417842987,3.11911467,83.85,83.802,18.25531149]
[1772417843184,19.35846818,83.859,83.81,3.11911467]
[1772417843384,19.35846818,83.859,83.82,3.11911467]
[1772417843885,19.35846818,83.859,83.81,21.37442616]
[1772417844584,19.35846818,83.859,83.812,10.7379]
[1772417844778,19.35846818,83.859,83.813,18.25531149]
[1772417844980,21.453,83.902,83.813,18.25531149]
[1772417844981,10.7303,83.872,83.813,18.25531149]
[1772417845887,10.7303,83.872,83.82,7.43163925]
[1772417846094,10.7303,83.872,83.82,25.68695074]
[1772417846388,10.7303,83.872,83.821,18.25531149]
[1772417848391,10.7303,83.872,83.77,62.0]
[1772417848392,19.35846818,83.853,83.804,18.25531149]
[1772417848791,19.35846818,83.849,83.781,18.25531149]
[1772417849692,10.7345,83.84,83.791,18.25531149]
[1772417849894,19.35846818,83.849,83.791,18.25531149]
[1772417850487,19.35846818,83.848,83.793,18.25531149]
[1772417851085,19.35846818,83.848,83.795,18.25531149]
[1772417851287,19.35846818,83.864,83.801,18.25531149]
[1772417852791,10.7315,83.862,83.811,10.7381]
[1772417853283,10.7315,83.862,83.811,28.99341149]
[1772417853595,10.7315,83.862,83.814,18.25531149]
[1772417855794,19.35846818,83.849,83.781,18.25531149]
[1772417856190,10.7351,83.835,83.781,18.25531149]
[1772417856388,19.35846818,83.834,83.781,18.25531149]
[1772417856797,18.16846818,83.834,83.781,18.25531149]
[1772417857299,10.7355,83.832,83.781,18.25531149]
[1772417858293,10.7365,83.824,83.781,18.25531149]
[1772417858894,19.35846818,83.829,83.781,18.25531149]
[1772417859095,7.43163925,83.85,83.781,18.25531149]
[1772417859394,19.35846818,83.869,83.811,18.25531149]
[1772417859589,19.35846818,83.885,83.82,7.43163925]
[1772417859795,19.35846818,83.885,83.821,18.25531149]
[1772417859990,19.35846818,83.885,83.83,7.43163925]
[1772417860191,19.35846818,83.885,83.831,18.25531149]
[1772417860590,7.43163925,83.92,83.8,7.43163925]
[1772417860591,19.35846818,83.92,83.851,18.25531149]
[1772417860791,19.35846818,83.92,83.861,18.25531149]
[1772417861391,19.35846818,83.92,83.862,18.25531149]
[1772417862300,19.35846818,83.87,83.801,10.7393]
[1772417862603,19.35846818,83.869,83.81,7.43163925]
[1772417863192,19.35846818,83.867,83.81,7.43163925]
[1772417863398,19.35846818,83.867,83.8,7.43163925]
[1772417863903,19.35846818,83.865,83.801,10.7394]
[1772417864102,19.35846818,83.865,83.8,7.43163925]
[1772417864299,19.35846818,83.865,83.801,18.25531149]
[1772417864496,19.35846818,83.865,83.81,10.7381]
[1772417865301,7.43163925,83.88,83.814,18.25531149]
[1772417865598,19.35846818,83.882,83.821,18.25531149]
[1772417866200,19.35846818,83.88,83.821,18.25531149]
[1772417866407,19.35846818,83.879,83.811,10.7381]
[1772417866609,19.35846818,83.869,83.805,18.25531149]
[1772417867006,34.86629831,83.995,83.8,7.43163925]
[1772417867007,19.35846818,83.885,83.82,7.43163925]
[1772417867209,19.35846818,83.885,83.811,18.25531149]
[1772417867410,19.3683262,83.883,83.823,10.7365]
[1772417867606,7.43163925,83.88,83.811,18.25531149]
[1772417867804,19.3683262,83.879,83.811,18.25531149]
[1772417868208,19.3683262,83.877,83.822,10.7366]
[1772417868808,19.3683262,83.877,83.822,30.88544376]
[1772417869005,19.3683262,83.877,83.829,10.7357]
[1772417869305,19.3683262,83.877,83.81,7.43163925]
[1772417869507,19.3683262,83.877,83.807,20.14884376]
[1772417870408,19.3683262,83.869,83.812,10.7379]
[1772417870713,19.3683262,83.869,83.807,20.14884376]
[1772417871816,19.3683262,83.868,83.811,20.14884376]
[1772417872009,19.3683262,83.868,83.81,7.43163925]
[1772417872010,19.3683262,83.868,83.82,7.43163925]
[1772417872215,19.3683262,83.868,83.821,20.14884376]
[1772417872411,10.7295,83.879,83.822,20.14884376]
[1772417873112,30.0951262,83.9,83.84,7.43163925]
[1772417873314,19.3683262,83.9,83.851,20.14884376]
[1772417873912,10.7269,83.899,83.851,20.14884376]
[1772417874313,19.3683262,83.9,83.851,20.14884376]
[1772417875110,30.0951262,83.9,83.851,20.14884376]
[1772417875315,19.3683262,83.9,83.851,20.14884376]
[1772417875914,10.7252,83.912,83.851,20.14884376]
[1772417876120,19.3683262,83.919,83.851,20.14884376]
[1772417877412,19.3683262,83.907,83.844,20.14884376]
[1772417877612,19.3683262,83.907,83.851,20.14884376]
[1772417878020,19.3683262,83.907,83.855,10.7324]
[1772417878213,19.3683262,83.907,83.856,20.14884376]
[1772417879718,19.3683262,83.907,83.859,20.14884376]
[1772417880316,19.3683262,83.899,83.811,20.14884376]
[1772417880517,19.3683262,83.869,83.811,20.14884376]
[1772417880711,19.3683262,83.887,83.839,30.88324376]
[1772417880915,19.3683262,83.887,83.823,20.14884376]
[1772417881317,19.3683262,83.903,83.841,20.14884376]
[1772417881517,19.3683262,83.899,83.841,20.14884376]